fUST/lending_fUST_20250715
["ID","MTS","AMOUNT","RATE_DAILY","PERIOD"]
[372218580,1752555034344,-460.0,0.00020547,3]
[372218582,1752555034354,-460.0,0.00020547,3]
[372218584,1752555034365,-746.45,0.00020547,3]
[372218586,1752555034375,-464.27552028,0.00020547,3]
[372218588,1752555034385,-460.0,0.00020547,3]
[372218590,1752555034395,-577.45,0.00020547,3]
[372218592,1752555034404,-533.07,0.00020547,3]
[372218594,1752555034413,-460.0,0.00020547,3]
[372218596,1752555034423,-460.0,0.00020547,3]
[372218598,1752555034431,-460.0,0.00020547,3]
[372218600,1752555034441,-460.0,0.00020547,3]
[372218602,1752555034450,-460.0,0.00020547,3]
[372218604,1752555034459,-460.0,0.00020547,3]
[372218606,1752555034469,-460.0,0.00020547,3]
[372218608,1752555034479,-460.0,0.00020547,3]
[372218610,1752555034489,-460.0,0.00020547,3]
[372218612,1752555034499,-769.52,0.00020547,3]
[372218614,1752555034509,-468.73905628,0.00020547,3]
[372218627,1752555034518,-460.0,0.00020547,3]
[372218630,1752555034637,-460.0,0.00020547,3]
[372218632,1752555034647,-275.46391303,0.00020547,3]
[372218634,1752555034656,-460.0,0.00020547,2]
[372218636,1752555034665,-460.0,0.00020547,3]
[372218638,1752555034675,-460.0,0.00020547,3]
[372218640,1752555034684,-460.0,0.00020547,3]
[372218642,1752555034693,-462.58607231,0.00020547,3]
[372218644,1752555034703,-3197.5,0.00020547,3]
[372218646,1752555034712,-460.0,0.00020547,3]
[372218648,1752555034721,-460.0,0.00020547,3]
[372218650,1752555034730,-460.0,0.00020547,3]
[372218652,1752555034739,-460.0,0.00020547,3]
[372218654,1752555034748,-462.24377738,0.00020547,3]
[372218656,1752555034758,-460.0,0.00020547,3]
[372218658,1752555034767,-460.0,0.00020547,3]
[372218659,1752555034775,-463.23815605,0.00020547,3]
[372218661,1752555034785,-460.0,0.00020547,3]
[372218663,1752555034794,-359.59110591,0.00020547,3]
[372218665,1752555034803,-214.37129034,0.00020547,3]
[372218667,1752555034812,-460.0,0.00020547,3]
[372218670,1752555034822,-460.0,0.00020547,3]
[372218671,1752555034831,-462.0547647,0.00020547,3]
[372218674,1752555034841,-510.9555099,0.00020547,3]
[372218675,1752555034850,-460.0,0.00020547,3]
[372218677,1752555034859,-460.0,0.00020547,3]
[372218679,1752555034869,-460.0,0.00020547,3]
[372218681,1752555034879,-518.82,0.00020547,3]
[372218684,1752555034889,-461.38,0.00020547,3]
[372218686,1752555034899,-460.0,0.00020547,3]
[372218688,1752555034908,-460.0,0.00020547,3]
[372218690,1752555034918,-12603.13032295,0.00020547,3]
[372218692,1752555034927,-238.02436979,0.00020547,3]
[372218695,1752555034948,-223.88437394,0.00020547,3]
[372218697,1752555034958,-460.0,0.00020547,3]
[372218699,1752555034968,-460.0,0.00020547,3]
[372218701,1752555034977,-478.15081322,0.00020547,3]
[372218703,1752555034987,-460.0,0.00020547,3]
[372218705,1752555034997,-462.7593212,0.00020547,3]
[372218707,1752555035006,-460.0,0.00020547,3]
[372218709,1752555035016,-460.0,0.00020547,3]
[372218711,1752555035026,-460.0,0.00020547,3]
[372218713,1752555035036,-460.0,0.00020547,3]
[372218715,1752555035045,-460.0,0.00020547,3]
[372218717,1752555035055,-460.0,0.00020547,3]
[372218719,1752555035065,-802.02,0.00020547,3]
[372218721,1752555035074,-532.17,0.00020547,3]
[372218723,1752555035084,-463.02918822,0.00020547,3]
[372218725,1752555035093,-460.0,0.00020547,3]
[372218727,1752555035103,-2142.07,0.00020547,3]
[372218729,1752555035112,-460.0,0.00020547,3]
[372218731,1752555035122,-460.0,0.00020547,3]
[372218733,1752555035131,-460.0,0.00020547,3]
[372218735,1752555035141,-460.96949158,0.00020547,3]
[372218737,1752555035151,-460.89610936,0.00020547,3]
[372218739,1752555035160,-460.0,0.00020547,3]
[372218741,1752555035169,-460.0,0.00020547,3]
[372218743,1752555035178,-460.0,0.00020547,3]
[372218745,1752555035187,-460.0,0.00020547,3]
[372218747,1752555035197,-464.90942237,0.00020547,3]
[372218749,1752555035206,-460.0,0.00020547,3]
[372218751,1752555035216,-460.0,0.00020547,3]
[372218753,1752555035225,-460.0,0.00020547,3]
[372218755,1752555035234,-461.06079837,0.00020547,3]
[372218757,1752555035244,-460.0,0.00020547,3]
[372218759,1752555035253,-460.0,0.00020547,3]
[372218761,1752555035263,-460.0,0.00020547,3]
[372218763,1752555035272,-460.0,0.00020547,3]
[372218765,1752555035281,-461.63875958,0.00020547,3]
[372218767,1752555035291,-460.0,0.00020547,3]
[372218769,1752555035300,-460.0,0.00020547,3]
[372218771,1752555035310,-473.5,0.00020547,3]
[372218773,1752555035320,-460.0,0.00020547,3]
[372218775,1752555035330,-522.89380388,0.00020547,3]
[372218777,1752555035343,-460.0,0.00020547,3]
[372218779,1752555035352,-460.0,0.00020547,3]
[372218781,1752555035364,-460.0,0.00020547,3]
[372218783,1752555035373,-481.12,0.00020547,3]
[372218785,1752555035384,-460.0,0.00020547,3]
[372218787,1752555035394,-460.0,0.00020547,3]
[372218789,1752555035403,-460.0,0.00020547,3]
[372218791,1752555035415,-460.80336965,0.00020547,3]
[372218793,1752555035425,-471.12003704,0.00020547,3]
[372218795,1752555035435,-463.03191003,0.00020547,3]
[372218798,1752555035444,-460.0,0.00020547,3]
[372218799,1752555035454,-667.24,0.00020547,3]
[372218802,1752555035463,-642.73,0.00020547,3]
[372218804,1752555035472,-460.0,0.00020547,3]
[372218806,1752555035482,-1088.91,0.00020547,3]
[372218808,1752555035491,-460.0,0.00020547,3]
[372218810,1752555035501,-460.0,0.00020547,3]
[372218812,1752555035510,-460.0,0.00020547,3]
[372218814,1752555035519,-460.0,0.00020547,3]
[372218816,1752555035528,-460.0,0.00020547,3]
[372218818,1752555035537,-460.0,0.00020547,3]
[372218819,1752555035547,-460.0,0.00020547,3]
[372218821,1752555035556,-460.0,0.00020547,3]
[372218824,1752555035565,-460.0,0.00020547,3]
[372218825,1752555035575,-460.0,0.00020547,3]
[372218828,1752555035584,-460.0,0.00020547,3]
[372218830,1752555035593,-460.0,0.00020547,3]
[372218831,1752555035602,-460.0,0.00020547,3]
[372218833,1752555035613,-460.0,0.00020547,3]
[372218835,1752555035623,-605.34,0.00020547,3]
[372218837,1752555035633,-464.92657863,0.00020547,3]
[372218840,1752555035642,-460.0,0.00020547,3]
[372218841,1752555035651,-917.12,0.00020547,3]
[372218843,1752555035660,-460.0,0.00020547,3]
[372218846,1752555035671,-280.20217593,0.00020547,3]
[372218848,1752555035681,-460.69178713,0.00020547,3]
[372218850,1752555035691,-461.16073628,0.00020547,3]
[372218852,1752555035700,-460.0,0.00020547,3]
[372218854,1752555035710,-467.60499545,0.00020547,3]
[372218856,1752555035719,-460.0,0.00020547,3]
[372218858,1752555035728,-461.54561539,0.00020547,3]
[372218860,1752555035737,-3078.1,0.00020547,3]
[372218862,1752555035747,-488.91,0.00020547,3]
[372218864,1752555035756,-460.0,0.00020547,3]
[372218866,1752555035765,-460.0,0.00020547,3]
[372218868,1752555035774,-460.0,0.00020547,3]
[372218870,1752555035784,-460.0,0.00020547,3]
[372218872,1752555035794,-460.0,0.00020547,3]
[372218874,1752555035803,-460.0,0.00020547,3]
[372218876,1752555035812,-460.0,0.00020547,3]
[372218878,1752555035821,-460.0,0.00020547,3]
[372218880,1752555035831,-460.59216395,0.00020547,3]
[372218882,1752555035840,-461.67987823,0.00020547,3]
[372218884,1752555035850,-460.0,0.00020547,3]
[372218886,1752555035859,-459.24784935,0.00020547,3]
[372218888,1752555035869,-460.0,0.00020547,3]
[372218890,1752555035878,-460.0,0.00020547,3]
[372218892,1752555035887,-460.0,0.00020547,3]
[372218894,1752555035897,-460.0,0.00020547,3]
[372218896,1752555035906,-460.0,0.00020547,3]
[372218898,1752555035915,-461.31978762,0.00020547,3]
[372218900,1752555035924,-460.0,0.00020547,3]
[372218902,1752555035933,-460.0,0.00020547,3]
[372218904,1752555035942,-167.19712736,0.00020547,3]
[372218906,1752555035952,-368.87749495,0.00020547,3]
[372218908,1752555035962,-460.68319525,0.00020547,3]
[372218910,1752555035971,-460.0,0.00020547,3]
[372218912,1752555035981,-460.0,0.00020547,3]
[372218914,1752555035990,-155.0,0.00020547,2]
[372218916,1752555035999,-460.0,0.00020547,3]
[372218918,1752555036008,-460.0,0.00020547,3]
[372218920,1752555036018,-5137.24,0.00020547,3]
[372218922,1752555036027,-460.0,0.00020547,3]
[372218924,1752555036037,-973.85,0.00020547,3]
[372218926,1752555036046,-460.0,0.00020547,3]
[372218928,1752555036055,-562.29,0.00020547,3]
[372218930,1752555036064,-462.40561897,0.00020547,3]
[372218931,1752555036074,-460.0,0.00020547,3]
[372218932,1752555036084,-460.0,0.00020547,3]
[372218933,1752555036094,-460.0,0.00020547,3]
[372218934,1752555036103,-460.0,0.00020547,3]
[372218935,1752555036113,-460.0,0.00020547,3]
[372218936,1752555036123,-460.0,0.00020547,3]
[372218937,1752555036133,-640.08,0.00020547,3]
[372218938,1752555036143,-640.08,0.00020547,3]
[372218939,1752555036152,-460.0,0.00020547,3]
[372218940,1752555036161,-640.08,0.00020547,3]
[372218941,1752555036171,-460.52595215,0.00020547,3]
[372218942,1752555036181,-462.84643076,0.00020547,3]
[372218943,1752555036190,-460.0,0.00020547,3]
[372218944,1752555036200,-460.0,0.00020547,3]
[372218945,1752555036210,-460.0,0.00020547,3]
[372218946,1752555036219,-460.80508079,0.00020547,3]
[372218947,1752555036229,-460.0,0.00020547,3]
[372218948,1752555036239,-460.0,0.00020547,3]
[372218949,1752555036248,-574.14,0.00020547,3]
[372218950,1752555036257,-1061.95,0.00020547,3]
[372218951,1752555036266,-460.0,0.00020547,3]
[372218952,1752555036276,-460.0,0.00020547,3]
[372218953,1752555036286,-3923.86,0.00020547,3]
[372218955,1752555036295,-460.0,0.00020547,3]
[372218957,1752555036305,-863.54,0.00020547,3]
[372218959,1752555036314,-460.0,0.00020547,3]
[372218961,1752555036323,-500.0,0.00020547,3]
[372218963,1752555036335,-259.74204433,0.00020583,2]
[372218965,1752555036345,-640.08,0.00020672,3]
[372218967,1752555036355,-550.16669943,0.00020673,2]
[372218969,1752555036364,-500.0,0.00020673,2]
[372218971,1752555036375,-500.0,0.00020673,2]
[372218973,1752555036384,-501.27685329,0.00020673,2]
[372218975,1752555036393,-606.71601871,0.00020673,2]
[372218977,1752555036403,-500.89595469,0.00020673,2]
[372218979,1752555036413,-462.14,0.00020673,3]
[372218981,1752555036422,-231.07,0.00020673,3]
[372218983,1752555036431,-693.21,0.00020673,3]
[372218985,1752555036441,-500.0,0.00020682,3]
[372218987,1752555036450,-500.0,0.00020682,3]
[372218989,1752555036459,-199.66,0.00020682,3]
[372218991,1752555036470,-640.08,0.00020682,3]
[372218993,1752555036480,-640.08,0.00020682,3]
[372218995,1752555036490,-640.08,0.00020682,3]
[372218997,1752555036499,-640.08,0.00020682,3]
[372218999,1752555036508,-640.08,0.00020682,3]
[372219001,1752555036518,-640.08,0.00020682,3]
[372219003,1752555036528,-460.0,0.00020683,3]
[372219005,1752555036538,-460.0,0.00020683,3]
[372219007,1752555036547,-460.0,0.00020683,3]
[372219009,1752555036556,-460.0,0.00020683,3]
[372219011,1752555036566,-460.0,0.00020683,3]
[372219013,1752555036575,-460.0,0.00020683,3]
[372219015,1752555036584,-460.0,0.00020683,3]
[372219017,1752555036593,-460.0,0.00020683,3]
[372219019,1752555036603,-460.0,0.00020683,3]
[372219021,1752555036613,-463.32075748,0.00020683,3]
[372219023,1752555036622,-462.53308842,0.00020683,3]
[372219026,1752555036631,-460.0,0.00020683,3]
[372219028,1752555036641,-462.18437684,0.00020683,3]
[372219029,1752555036650,-461.65432292,0.00020683,3]
[372219031,1752555036660,-461.1180355,0.00020683,3]
[372219033,1752555036669,-461.79405914,0.00020683,3]
[372219036,1752555036679,-461.46973803,0.00020683,3]
[372219037,1752555036689,-460.39957395,0.00020683,3]
[372219040,1752555036700,-462.94876309,0.00020683,3]
[372219041,1752555036710,-476.97236062,0.00020683,3]
[372219043,1752555036719,-460.0,0.00020683,3]
[372219046,1752555036729,-460.0,0.00020683,3]
[372219048,1752555036739,-500.44514207,0.00020683,3]
[372219050,1752555036750,-509.81540877,0.00020683,3]
[372219052,1752555036761,-465.09631944,0.00020683,3]
[372219054,1752555036771,-462.92012118,0.00020683,3]
[372219055,1752555036781,-460.0,0.00020683,3]
[372219057,1752555036791,-463.59634963,0.00020683,3]
[372219059,1752555036800,-460.0,0.00020683,3]
[372219061,1752555036809,-460.0,0.00020683,3]
[372219063,1752555036819,-460.0,0.00020683,3]
[372219066,1752555036829,-460.0,0.00020683,3]
[372219067,1752555036839,-460.0,0.00020683,3]
[372219070,1752555036850,-463.49,0.00020683,3]
[372219071,1752555036859,-463.17452599,0.00020683,3]
[372219073,1752555036870,-460.0,0.00020683,3]
[372219076,1752555036879,-465.38424226,0.00020683,3]
[372219087,1752555036979,-460.0,0.00020683,3]
[372219089,1752555036988,-460.0,0.00020683,3]
[372219091,1752555036998,-460.0,0.00020683,3]
[372219093,1752555037007,-463.1195578,0.00020683,3]
[372219095,1752555037016,-460.0,0.00020683,3]
[372219097,1752555037026,-460.0,0.00020683,3]
[372219099,1752555037034,-460.0,0.00020683,3]
[372219101,1752555037044,-460.0,0.00020683,3]
[372219103,1752555037053,-460.6167791,0.00020683,3]
[372219105,1752555037063,-461.64558355,0.00020683,3]
[372219107,1752555037072,-460.0,0.00020683,3]
[372219109,1752555037081,-461.25670804,0.00020683,3]
[372219111,1752555037090,-460.74387287,0.00020683,3]
[372219112,1752555037099,-460.48241358,0.00020683,3]
[372219114,1752555037108,-461.23933759,0.00020683,3]
[372219116,1752555037118,-405.05862106,0.00020683,3]
[372219118,1752555037127,-460.0,0.00020683,3]
[372219120,1752555037136,-461.9713073,0.00020683,3]
[372219122,1752555037146,-462.05864023,0.00020683,3]
[372219125,1752555037156,-460.55476651,0.00020683,3]
[372219127,1752555037165,-460.0,0.00020683,3]
[372219129,1752555037175,-460.0,0.00020683,3]
[372219130,1752555037184,-460.0,0.00020683,3]
[372219132,1752555037193,-460.0,0.00020683,3]
[372219135,1752555037203,-460.0,0.00020683,3]
[372219137,1752555037213,-460.0,0.00020683,3]
[372219139,1752555037222,-460.44965218,0.00020683,3]
[372219140,1752555037231,-460.0,0.00020683,3]
[372219143,1752555037242,-460.0,0.00020683,3]
[372219144,1752555037251,-460.0,0.00020683,3]
[372219147,1752555037260,-409.13231661,0.00020683,3]
[372219149,1752555037270,-460.0,0.00020683,3]
[372219151,1752555037280,-460.0,0.00020683,3]
[372219153,1752555037289,-460.0,0.00020683,3]
[372219155,1752555037300,-460.0,0.00020683,3]
[372219157,1752555037310,-460.0,0.00020683,3]
[372219159,1752555037319,-461.39156075,0.00020683,3]
[372219161,1752555037329,-304.1748121,0.00020683,3]
[372219163,1752555037342,-460.94852609,0.00020683,3]
[372219165,1752555037351,-460.0,0.00020683,3]
[372219167,1752555037360,-509.27207972,0.00020683,3]
[372219169,1752555037370,-460.0,0.00020683,3]
[372219172,1752555037381,-461.15095946,0.00020683,3]
[372219174,1752555037390,-460.94462294,0.00020683,3]
[372219176,1752555037399,-460.0,0.00020683,3]
[372219178,1752555037409,-460.0,0.00020683,3]
[372219180,1752555037419,-460.0,0.00020683,3]
[372219182,1752555037428,-460.0,0.00020683,3]
[372219184,1752555037438,-460.0,0.00020683,3]
[372219186,1752555037449,-362.80202583,0.00020683,3]
[372219189,1752555037459,-532.30887657,0.00020683,3]
[372219191,1752555037468,-460.51954437,0.00020683,3]
[372219193,1752555037478,-460.0,0.00020683,3]
[372219195,1752555037487,-461.48518666,0.00020683,3]
[372219197,1752555037496,-460.0,0.00020683,3]
[372219199,1752555037506,-460.0,0.00020683,3]
[372219201,1752555037515,-460.0,0.00020683,3]
[372219203,1752555037525,-460.0,0.00020683,3]
[372219205,1752555037535,-325.30088947,0.00020683,3]
[372219207,1752555037544,-460.0,0.00020683,3]
[372219209,1752555037554,-463.70228105,0.00020683,3]
[372219211,1752555037563,-460.0,0.00020683,3]
[372219213,1752555037573,-460.0,0.00020683,3]
[372219215,1752555037582,-460.0,0.00020683,3]
[372219217,1752555037591,-739.4,0.00020683,3]
[372219219,1752555037600,-461.92738361,0.00020683,3]
[372219221,1752555037609,-460.0,0.00020683,3]
[372219223,1752555037620,-501.80441671,0.00020683,3]
[372219224,1752555037630,-502.80813246,0.00020683,3]
[372219226,1752555037639,-460.0,0.00020683,3]
[372219229,1752555037649,-176.58697624,0.00020683,3]
[372219231,1752555037658,-460.0,0.00020683,3]
[372219233,1752555037667,-460.0,0.00020683,3]
[372219234,1752555037676,-460.0,0.00020683,3]
[372219236,1752555037686,-460.0,0.00020683,3]
[372219239,1752555037696,-460.0,0.00020683,3]
[372219241,1752555037705,-460.0,0.00020683,3]
[372219242,1752555037714,-463.41769715,0.00020683,3]
[372219244,1752555037723,-460.0,0.00020683,3]
[372219247,1752555037732,-460.0,0.00020683,3]
[372219249,1752555037742,-460.0,0.00020683,3]
[372219250,1752555037753,-460.0,0.00020683,3]
[372219252,1752555037762,-460.0,0.00020683,3]
[372219254,1752555037771,-460.0,0.00020683,3]
[372219256,1752555037781,-464.17329119,0.00020683,3]
[372219258,1752555037790,-460.0,0.00020683,3]
[372219260,1752555037799,-460.0,0.00020683,3]
[372219262,1752555037808,-460.0,0.00020683,3]
[372219264,1752555037817,-460.0,0.00020683,3]
[372219266,1752555037827,-460.0,0.00020683,3]
[372219268,1752555037836,-460.0,0.00020683,3]
[372219270,1752555037845,-460.0,0.00020683,3]
[372219272,1752555037855,-460.0,0.00020683,3]
[372219274,1752555037867,-460.0,0.00020683,3]
[372219276,1752555037876,-460.0,0.00020683,3]
[372219278,1752555037886,-460.0,0.00020683,3]
[372219281,1752555037895,-460.0,0.00020683,3]
[372219283,1752555037905,-460.0,0.00020683,3]
[372219285,1752555037914,-460.0,0.00020683,3]
[372219287,1752555037924,-643.43,0.00020683,3]
[372219289,1752555037933,-460.0,0.00020683,3]
[372219291,1752555037942,-1492.12,0.00020683,3]
[372219293,1752555037951,-460.0,0.00020683,3]
[372219295,1752555037961,-460.0,0.00020683,3]
[372219297,1752555037970,-460.0,0.00020683,3]
[372219299,1752555037979,-463.37119084,0.00020683,3]
[372219301,1752555037989,-460.0,0.00020683,3]
[372219303,1752555037999,-1772.41,0.00020683,3]
[372219306,1752555038017,-460.0,0.00020683,3]
[372219309,1752555038029,-340.40381351,0.00020683,3]
[372219311,1752555038039,-460.0,0.00020683,3]
[372219313,1752555038048,-460.0,0.00020683,3]
[372219315,1752555038059,-460.0,0.00020683,3]
[372219317,1752555038069,-2396.13,0.00020683,3]
[372219319,1752555038079,-460.0,0.00020683,3]
[372219321,1752555038089,-460.0,0.00020683,3]
[372219323,1752555038098,-460.0,0.00020683,3]
[372219325,1752555038108,-460.0,0.00020683,3]
[372219327,1752555038121,-1659.78,0.00020683,3]
[372219329,1752555038131,-1348.1,0.00020683,3]
[372219331,1752555038141,-1120.91,0.00020683,3]
[372219334,1752555038151,-641.93,0.00020683,3]
[372219336,1752555038161,-4046.12,0.00020683,3]
[372219337,1752555038170,-207.4,0.00020684,2]
[372219340,1752555038180,-168.46439855,0.00020694,2]
[372219341,1752555038190,-5307.16,0.000207,2]
[372219344,1752555038199,-640.08,0.0002082,3]
[372219345,1752555038209,-640.08,0.0002082,3]
[372219348,1752555038219,-460.0,0.00020821,3]
[372219350,1752555038229,-460.0,0.00020821,3]
[372219352,1752555038239,-460.0,0.00020821,3]
[372219354,1752555038248,-460.0,0.00020821,3]
[372219356,1752555038258,-460.0,0.00020821,3]
[372219358,1752555038268,-159.20515853,0.00020821,3]
[372219360,1752555038277,-464.06335702,0.00020821,3]
[372219362,1752555038287,-508.56840454,0.00020821,3]
[372219364,1752555038298,-460.0,0.00020821,3]
[372219366,1752555038308,-460.0,0.00020821,3]
[372219368,1752555038318,-460.0,0.00020821,3]
[372219370,1752555038327,-466.63575578,0.00020821,3]
[372219372,1752555038341,-460.0,0.00020821,3]
[372219374,1752555038350,-460.0,0.00020821,3]
[372219376,1752555038360,-464.96489105,0.00020821,3]
[372219378,1752555038371,-460.0,0.00020821,3]
[372219380,1752555038380,-460.0,0.00020821,3]
[372219382,1752555038391,-460.0,0.00020821,3]
[372219384,1752555038400,-460.0,0.00020821,3]
[372219386,1752555038411,-460.0,0.00020821,3]
[372219388,1752555038421,-460.0,0.00020821,3]
[372219390,1752555038432,-463.13094727,0.00020821,3]
[372219392,1752555038442,-460.0,0.00020821,3]
[372219394,1752555038451,-460.0,0.00020821,3]
[372219396,1752555038461,-460.0,0.00020821,3]
[372219398,1752555038472,-460.0,0.00020821,3]
[372219400,1752555038481,-260.97393233,0.00020821,3]
[372219402,1752555038491,-460.0,0.00020821,3]
[372219404,1752555038501,-460.0,0.00020821,3]
[372219406,1752555038511,-460.0,0.00020821,3]
[372219408,1752555038520,-460.0,0.00020821,3]
[372219410,1752555038530,-460.0,0.00020821,3]
[372219412,1752555038541,-460.0,0.00020821,3]
[372219414,1752555038551,-460.0,0.00020821,3]
[372219416,1752555038560,-460.0,0.00020821,3]
[372219418,1752555038569,-469.97796975,0.00020821,3]
[372219420,1752555038579,-460.0,0.00020821,3]
[372219422,1752555038589,-460.0,0.00020821,3]
[372219424,1752555038598,-469.57988619,0.00020821,3]
[372219426,1752555038608,-460.0,0.00020821,3]
[372219428,1752555038618,-460.0,0.00020821,3]
[372219430,1752555038627,-464.38507739,0.00020821,3]
[372219432,1752555038637,-460.0,0.00020821,3]
[372219434,1752555038650,-462.59599469,0.00020821,3]
[372219435,1752555038660,-460.0,0.00020821,3]
[372219436,1752555038670,-460.0,0.00020821,3]
[372219437,1752555038679,-512.23774685,0.00020821,3]
[372219438,1752555038689,-460.0,0.00020821,3]
[372219439,1752555038699,-460.0,0.00020821,3]
[372219440,1752555038708,-210.18515389,0.00020821,3]
[372219442,1752555038718,-642.85,0.00020821,3]
[372219444,1752555038727,-460.0,0.00020821,3]
[372219446,1752555038737,-460.0,0.00020821,3]
[372219448,1752555038746,-460.0,0.00020821,3]
[372219450,1752555038755,-460.0,0.00020821,3]
[372219452,1752555038764,-460.0,0.00020821,3]
[372219454,1752555038774,-460.0,0.00020821,3]
[372219456,1752555038783,-460.0,0.00020821,3]
[372219458,1752555038792,-460.0,0.00020821,3]
[372219460,1752555038802,-460.0,0.00020821,3]
[372219462,1752555038811,-460.0,0.00020821,3]
[372219464,1752555038820,-460.0,0.00020821,3]
[372219466,1752555038830,-460.0,0.00020821,3]
[372219468,1752555038839,-462.85138596,0.00020821,3]
[372219470,1752555038848,-564.57285237,0.00020821,3]
[372219472,1752555038858,-460.0,0.00020821,3]
[372219474,1752555038868,-460.0,0.00020821,3]
[372219476,1752555038878,-460.0,0.00020821,3]
[372219478,1752555038888,-460.0,0.00020821,3]
[372219480,1752555038897,-460.0,0.00020821,3]
[372219482,1752555038907,-462.98543206,0.00020821,3]
[372219484,1752555038916,-463.79,0.00020821,3]
[372219486,1752555038925,-468.47166745,0.00020821,3]
[372219488,1752555038935,-460.81049541,0.00020821,3]
[372219490,1752555038944,-460.59,0.00020821,3]
[372219492,1752555038954,-460.0,0.00020821,3]
[372219494,1752555038964,-460.0,0.00020821,3]
[372219496,1752555038974,-89.59061715,0.00020821,3]
[372219499,1752555038996,-370.40938285,0.00020821,3]
[372219501,1752555039006,-460.0,0.00020821,3]
[372219503,1752555039016,-460.0,0.00020821,3]
[372219505,1752555039026,-460.0,0.00020821,3]
[372219508,1752555039035,-471.97041884,0.00020821,3]
[372219509,1752555039044,-460.0,0.00020821,3]
[372219511,1752555039054,-460.0,0.00020821,3]
[372219514,1752555039063,-460.0,0.00020821,3]
[372219516,1752555039073,-460.0,0.00020821,3]
[372219518,1752555039083,-460.0,0.00020821,3]
[372219533,1752555039210,-1708.50958376,0.00020821,3]
[372219546,1752555039884,-460.0,0.00020547,3]
[372219547,1752555039895,-3010.04041624,0.00020821,3]
[372219548,1752555039904,-610.27,0.00020821,3]
[372219549,1752555039914,-2259.06,0.00020821,3]
[372219550,1752555039924,-470.17810872,0.00020821,3]
[372219551,1752555039933,-470.66624168,0.00020821,3]
[372219552,1752555039943,-1219.81,0.00020821,3]
[372219553,1752555039952,-464.63862494,0.00020821,3]
[372219554,1752555039962,-746.45,0.00020821,3]
[372219555,1752555039971,-460.0,0.00020821,3]
[372219556,1752555039981,-577.45,0.00020821,3]
[372219557,1752555040000,-533.07,0.00020821,3]
[372219558,1752555040011,-521.9263345,0.00020821,3]
[372219559,1752555040021,-464.0185685,0.00020821,3]
[372219560,1752555040031,-402.33959893,0.00020821,3]
[372219561,1752555040041,-460.0,0.00020821,3]
[372219562,1752555040052,-460.0,0.00020821,3]
[372219563,1752555040061,-287.90367896,0.00020821,3]
[372219565,1752555040071,-460.0,0.00020821,3]
[372219567,1752555040081,-769.52,0.00020821,3]
[372219569,1752555040091,-460.0,0.00020821,3]
[372219571,1752555040101,-464.21760307,0.00020821,3]
[372219573,1752555040111,-465.00778457,0.00020821,3]
[372219575,1752555040122,-3197.5,0.00020821,3]
[372219576,1752555040131,-460.0,0.00020821,3]
[372219577,1752555040141,-460.0,0.00020821,3]
[372219578,1752555040151,-163.5148154,0.00020821,3]
[372219579,1752555040161,-466.78729612,0.00020821,3]
[372219580,1752555040171,-218.36705027,0.00020821,3]
[372219581,1752555040180,-460.0,0.00020821,3]